[Event "Titled Tuesday Blitz August 22 Early 2023"]
[White "Egor_Koshulyan"]
[Black "Melikhov, Evgeny V."]
[BlackFideId "4122046"]
[WhiteElo "2669"]
[BlackElo "2401"]
[Result "1-0"]
[Round "2"]
[TimeControl "180+1"]
[Date "2023.08.22"]
[WhiteClock "0:00:13"]
[BlackClock "0:00:01"]
[Board "149"]

1. e4 {[%clk 0:03:00]}  e5 {[%clk 0:02:58]} 2. Nf3 {[%clk 0:03:01]}  Nc6 {[%clk 0:02:58]} 3. Bb5 {[%clk 0:03:00]}  a6 {[%clk 0:02:58]} 4. Ba4 {[%clk 0:03:00]}  Nf6 {[%clk 0:02:58]} 5. O-O {[%clk 0:03:00]}  Nxe4 {[%clk 0:02:57]} 6. d4 {[%clk 0:03:00]}  b5 {[%clk 0:02:57]} 7. Bb3 {[%clk 0:03:00]}  d5 {[%clk 0:02:58]} 8. dxe5 {[%clk 0:03:00]}  Be6 {[%clk 0:02:59]} 9. c3 {[%clk 0:02:58]}  Bc5 {[%clk 0:02:59]} 10. Qe2 {[%clk 0:02:50]}  O-O {[%clk 0:02:55]} 11. Be3 {[%clk 0:02:46]}  Bxe3 {[%clk 0:02:40]} 12. Qxe3 {[%clk 0:02:47]}  f6 {[%clk 0:02:36]} 13. exf6 {[%clk 0:02:24]}  Qxf6 {[%clk 0:02:36]} 14. Nbd2 {[%clk 0:02:23]}  Nxd2 {[%clk 0:02:32]} 15. Qxd2 {[%clk 0:02:23]}  Rad8 {[%clk 0:02:17]} 16. Rfe1 {[%clk 0:02:20]}  Na5 {[%clk 0:02:09]} 17. Nd4 {[%clk 0:02:10]}  Bf5 {[%clk 0:01:41]} 18. Rad1 {[%clk 0:01:42]}  Nxb3 {[%clk 0:01:34]} 19. axb3 {[%clk 0:01:42]}  c5 {[%clk 0:01:31]} 20. Nxf5 {[%clk 0:01:29]}  Qxf5 {[%clk 0:01:30]} 21. Ra1 {[%clk 0:01:30]}  d4 {[%clk 0:01:24]} 22. cxd4 {[%clk 0:01:27]}  Rxd4 {[%clk 0:01:22]} 23. Qe2 {[%clk 0:01:24]}  Rd6 {[%clk 0:01:13]} 24. Rac1 {[%clk 0:01:21]}  Rdf6 {[%clk 0:01:10]} 25. Rc2 {[%clk 0:01:12]}  h6 {[%clk 0:00:59]} 26. Rec1 {[%clk 0:01:12]}  Re6 {[%clk 0:00:55]} 27. Qd2 {[%clk 0:01:06]}  Re5 {[%clk 0:00:51]} 28. h3 {[%clk 0:00:57]}  Rfe8 {[%clk 0:00:46]} 29. Ra1 {[%clk 0:00:39]}  Rd5 {[%clk 0:00:38]} 30. Qc3 {[%clk 0:00:34]}  Re6 {[%clk 0:00:36]} 31. Rac1 {[%clk 0:00:29]}  Qe5 {[%clk 0:00:31]} 32. Qa5 {[%clk 0:00:28]}  Red6 {[%clk 0:00:27]} 33. Qa1 {[%clk 0:00:18]}  Rd2 {[%clk 0:00:19]} 34. Rxc5 {[%clk 0:00:18]}  Qxc5 {[%clk 0:00:16]} 35. Rxc5 {[%clk 0:00:17]}  Rd1+ {[%clk 0:00:16]} 36. Qxd1 {[%clk 0:00:17]}  Rxd1+ {[%clk 0:00:17]} 37. Kh2 {[%clk 0:00:18]}  Rd2 {[%clk 0:00:17]} 38. Rc6 {[%clk 0:00:18]}  Rxb2 {[%clk 0:00:17]} 39. Rxa6 {[%clk 0:00:18]}  Rxb3 {[%clk 0:00:17]} 40. Rb6 {[%clk 0:00:18]}  Rb1 {[%clk 0:00:17]} 41. Rb7 {[%clk 0:00:18]}  b4 {[%clk 0:00:17]} 42. h4 {[%clk 0:00:19]}  h5 {[%clk 0:00:13]} 43. Kg3 {[%clk 0:00:18]}  b3 {[%clk 0:00:14]} 44. f3 {[%clk 0:00:19]}  b2 {[%clk 0:00:13]} 45. Kf4 {[%clk 0:00:14]}  Kf8 {[%clk 0:00:13]} 46. Kg5 {[%clk 0:00:13]}  Ke8 {[%clk 0:00:06]} 47. Kxh5 {[%clk 0:00:13]}  Kd8 {[%clk 0:00:06]} 48. Kg6 {[%clk 0:00:13]}  Kc8 {[%clk 0:00:06]} 49. Rb3 {[%clk 0:00:13]}  Kc7 {[%clk 0:00:05]} 50. Kxg7 {[%clk 0:00:13]}  Kc6 {[%clk 0:00:04]} 51. h5 {[%clk 0:00:14]}  Kc5 {[%clk 0:00:04]} 52. h6 {[%clk 0:00:14]}  Kc4 {[%clk 0:00:04]} 53. Rb8 {[%clk 0:00:15]}  Kc3 {[%clk 0:00:03]} 54. h7 {[%clk 0:00:14]}  Rg1 {[%clk 0:00:04]} 55. Rxb2 {[%clk 0:00:14]}  Kxb2 {[%clk 0:00:03]} 56. h8=Q {[%clk 0:00:15]}  Rxg2+ {[%clk 0:00:03]} 57. Kf7+ {[%clk 0:00:15]}  Kc2 {[%clk 0:00:03]} 58. Qh7+ {[%clk 0:00:15]}  Kd2 {[%clk 0:00:03]} 59. Qe4 {[%clk 0:00:15]}  Re2 {[%clk 0:00:02]} 60. Qxe2+ {[%clk 0:00:13]}  Kxe2 {[%clk 0:00:01]} 61. f4 {[%clk 0:00:13]} 1-0


[Site "https://www.chess.com"]

[Event "Titled Tuesday Blitz August 22 Early 2023"]
[White "Cheer_Down"]
[Black "Zhu, Jiner"]
[BlackFideId "8608059"]
[WhiteElo "2397"]
[BlackElo "2652"]
[Result "0-1"]
[Round "2"]
[TimeControl "180+1"]
[Date "2023.08.22"]
[WhiteClock "0:00:20"]
[BlackClock "0:01:17"]
[Board "152"]

1. e4 {[%clk 0:02:59]}  e5 {[%clk 0:02:59]} 2. Nf3 {[%clk 0:02:58]}  Nc6 {[%clk 0:02:58]} 3. Bc4 {[%clk 0:02:56]}  Bc5 {[%clk 0:02:55]} 4. c3 {[%clk 0:02:56]}  Nf6 {[%clk 0:02:53]} 5. d4 {[%clk 0:02:54]}  exd4 {[%clk 0:02:53]} 6. e5 {[%clk 0:02:55]}  d5 {[%clk 0:02:51]} 7. Bb5 {[%clk 0:02:54]}  Ne4 {[%clk 0:02:50]} 8. cxd4 {[%clk 0:02:55]}  Bb6 {[%clk 0:02:50]} 9. Nc3 {[%clk 0:02:51]}  Bg4 {[%clk 0:02:46]} 10. Be3 {[%clk 0:02:37]}  O-O {[%clk 0:02:42]} 11. Bxc6 {[%clk 0:02:33]}  bxc6 {[%clk 0:02:42]} 12. h3 {[%clk 0:02:32]}  Bh5 {[%clk 0:02:41]} 13. Qc2 {[%clk 0:01:55]}  f5 {[%clk 0:02:11]} 14. Nxe4 {[%clk 0:00:55]}  dxe4 {[%clk 0:02:07]} 15. Ng5 {[%clk 0:00:45]}  Qd5 {[%clk 0:01:57]} 16. g4 {[%clk 0:00:38]}  Ba5+ {[%clk 0:01:36]} 17. Kf1 {[%clk 0:00:34]}  f4 {[%clk 0:01:32]} 18. gxh5 {[%clk 0:00:30]}  fxe3 {[%clk 0:01:32]} 19. Qxe4 {[%clk 0:00:25]}  Rxf2+ {[%clk 0:01:30]} 20. Kg1 {[%clk 0:00:25]}  Qxe4 {[%clk 0:01:21]} 21. Nxe4 {[%clk 0:00:25]}  Rxb2 {[%clk 0:01:22]} 22. Rh2 {[%clk 0:00:20]}  e2 {[%clk 0:01:17]} 0-1


[Site "https://www.chess.com"]

[Event "Titled Tuesday Blitz August 22 Early 2023"]
[White "rikchessmx"]
[Black "Sipila, Vilka"]
[BlackFideId "505455"]
[WhiteElo "2393"]
[BlackElo "2626"]
[Result "0-1"]
[Round "2"]
[TimeControl "180+1"]
[Date "2023.08.22"]
[WhiteClock "0:00:03"]
[BlackClock "0:00:07"]
[Board "156"]

1. e4 {[%clk 0:02:51]}  d5 {[%clk 0:02:58]} 2. exd5 {[%clk 0:02:50]}  Qxd5 {[%clk 0:02:59]} 3. Nc3 {[%clk 0:02:51]}  Qa5 {[%clk 0:02:58]} 4. Bc4 {[%clk 0:02:51]}  Nf6 {[%clk 0:02:57]} 5. d3 {[%clk 0:02:51]}  Bg4 {[%clk 0:02:56]} 6. f3 {[%clk 0:02:51]}  Bd7 {[%clk 0:02:49]} 7. Bd2 {[%clk 0:02:51]}  c6 {[%clk 0:02:13]} 8. Qe2 {[%clk 0:02:47]}  e6 {[%clk 0:02:10]} 9. Nh3 {[%clk 0:02:44]}  Bb4 {[%clk 0:02:06]} 10. a3 {[%clk 0:02:37]}  Nd5 {[%clk 0:02:05]} 11. Bxd5 {[%clk 0:02:26]}  cxd5 {[%clk 0:02:02]} 12. O-O-O {[%clk 0:02:26]}  Nc6 {[%clk 0:01:32]} 13. axb4 {[%clk 0:01:40]}  Qa1+ {[%clk 0:01:27]} 14. Nb1 {[%clk 0:01:40]}  Nd4 {[%clk 0:01:28]} 15. Qe5 {[%clk 0:01:34]}  Nxc2 {[%clk 0:01:26]} 16. Bc3 {[%clk 0:01:08]}  f6 {[%clk 0:00:50]} 17. Qd6 {[%clk 0:01:04]}  d4 {[%clk 0:00:40]} 18. Kxc2 {[%clk 0:01:03]}  Ba4+ {[%clk 0:00:26]} 19. Kc1 {[%clk 0:00:58]}  dxc3 {[%clk 0:00:19]} 20. Qxe6+ {[%clk 0:00:58]}  Kf8 {[%clk 0:00:20]} 21. bxc3 {[%clk 0:00:45]}  Bxd1 {[%clk 0:00:10]} 22. Rxd1 {[%clk 0:00:44]}  Rd8 {[%clk 0:00:11]} 23. Nf4 {[%clk 0:00:41]}  Re8 {[%clk 0:00:11]} 24. Qd6+ {[%clk 0:00:41]}  Kf7 {[%clk 0:00:11]} 25. Qd5+ {[%clk 0:00:41]}  Kf8 {[%clk 0:00:08]} 26. Ne6+ {[%clk 0:00:40]}  Kf7 {[%clk 0:00:06]} 27. Ng5+ {[%clk 0:00:39]}  Kg6 {[%clk 0:00:06]} 28. Ne4 {[%clk 0:00:33]}  Re5 {[%clk 0:00:05]} 29. Qc4 {[%clk 0:00:31]}  b5 {[%clk 0:00:04]} 30. Qc7 {[%clk 0:00:24]}  a5 {[%clk 0:00:05]} 31. f4 {[%clk 0:00:23]}  Rd5 {[%clk 0:00:03]} 32. g4 {[%clk 0:00:22]}  axb4 {[%clk 0:00:03]} 33. f5+ {[%clk 0:00:23]}  Kh6 {[%clk 0:00:03]} 34. g5+ {[%clk 0:00:20]}  fxg5 {[%clk 0:00:03]} 35. Qc6+ {[%clk 0:00:20]}  g6 {[%clk 0:00:02]} 36. Qxd5 {[%clk 0:00:20]}  bxc3 {[%clk 0:00:03]} 37. Nxc3 {[%clk 0:00:20]}  b4 {[%clk 0:00:03]} 38. fxg6 {[%clk 0:00:17]}  bxc3 {[%clk 0:00:03]} 39. Qb3 {[%clk 0:00:15]}  Rc8 {[%clk 0:00:03]} 40. Qc2 {[%clk 0:00:15]}  Rb8 {[%clk 0:00:03]} 41. gxh7 {[%clk 0:00:11]}  Kxh7 {[%clk 0:00:01]} 42. d4+ {[%clk 0:00:11]}  Kh6 {[%clk 0:00:02]} 43. Qxc3 {[%clk 0:00:10]}  Rxb1+ {[%clk 0:00:01]} 44. Kd2 {[%clk 0:00:10]}  Qxc3+ {[%clk 0:00:01]} 45. Kxc3 {[%clk 0:00:10]}  Rxd1 {[%clk 0:00:02]} 46. Kc4 {[%clk 0:00:09]}  Kg6 {[%clk 0:00:03]} 47. Kc5 {[%clk 0:00:10]}  Kf5 {[%clk 0:00:04]} 48. d5 {[%clk 0:00:10]}  Ke5 {[%clk 0:00:05]} 49. Kc4 {[%clk 0:00:09]}  Rxd5 {[%clk 0:00:05]} 50. h4 {[%clk 0:00:09]}  Rd4+ {[%clk 0:00:06]} 51. Kc3 {[%clk 0:00:03]}  gxh4 {[%clk 0:00:07]} 0-1


[Site "https://www.chess.com"]

[Event "Titled Tuesday Blitz August 22 Early 2023"]
[White "HamedWafa4"]
[Black "Biregina"]
[WhiteElo "2620"]
[BlackElo "2392"]
[Result "1-0"]
[Round "2"]
[TimeControl "180+1"]
[Date "2023.08.22"]
[WhiteClock "0:02:21"]
[BlackClock "0:01:47"]
[Board "157"]

1. Nf3 {[%clk 0:03:00]}  Nc6 {[%clk 0:02:58]} 2. d4 {[%clk 0:02:59]}  d6 {[%clk 0:02:56]} 3. d5 {[%clk 0:02:58]}  Ne5 {[%clk 0:02:55]} 4. Nxe5 {[%clk 0:02:58]}  dxe5 {[%clk 0:02:56]} 5. e4 {[%clk 0:02:58]}  Nf6 {[%clk 0:02:50]} 6. f3 {[%clk 0:02:46]}  e6 {[%clk 0:02:44]} 7. c4 {[%clk 0:02:44]}  Bb4+ {[%clk 0:02:34]} 8. Nc3 {[%clk 0:02:39]}  c6 {[%clk 0:02:33]} 9. dxc6 {[%clk 0:02:33]}  Qxd1+ {[%clk 0:02:05]} 10. Kxd1 {[%clk 0:02:31]}  bxc6 {[%clk 0:02:05]} 11. Be3 {[%clk 0:02:26]}  Ba6 {[%clk 0:02:04]} 12. Kc2 {[%clk 0:02:25]}  Ke7 {[%clk 0:01:57]} 13. a3 {[%clk 0:02:25]}  Bd6 {[%clk 0:01:54]} 14. c5 {[%clk 0:02:24]}  Bxf1 {[%clk 0:01:49]} 15. cxd6+ {[%clk 0:02:24]}  Kxd6 {[%clk 0:01:50]} 16. Rhxf1 {[%clk 0:02:23]}  Kc7 {[%clk 0:01:51]} 17. Rac1 {[%clk 0:02:21]}  Kb7 {[%clk 0:01:51]} 18. Rfd1 {[%clk 0:02:21]}  Rad8 {[%clk 0:01:50]} 19. Rxd8 {[%clk 0:02:21]}  Rxd8 {[%clk 0:01:51]} 20. Rd1 {[%clk 0:02:22]}  Rxd1 {[%clk 0:01:52]} 21. Kxd1 {[%clk 0:02:21]}  Nd7 {[%clk 0:01:52]} 22. Na4 {[%clk 0:02:21]}  Kc7 {[%clk 0:01:51]} 23. Kc2 {[%clk 0:02:20]}  f6 {[%clk 0:01:50]} 24. Nc5 {[%clk 0:02:19]}  Nb6 {[%clk 0:01:50]} 25. Nxe6+ {[%clk 0:02:19]}  Kd6 {[%clk 0:01:50]} 26. Bxb6 {[%clk 0:02:20]}  axb6 {[%clk 0:01:47]} 27. Nxg7 {[%clk 0:02:21]} 1-0


[Site "https://www.chess.com"]

[Event "Titled Tuesday Blitz August 22 Early 2023"]
[White "brm72"]
[Black "Yuruultei Batbaatar"]
[BlackFideId "4905962"]
[WhiteElo "2590"]
[BlackElo "2373"]
[Result "0-1"]
[Round "2"]
[TimeControl "180+1"]
[Date "2023.08.22"]
[WhiteClock "0:00:25"]
[BlackClock "0:00:21"]
[Board "163"]

1. d4 {[%clk 0:03:00]}  Nf6 {[%clk 0:02:59]} 2. c4 {[%clk 0:03:00]}  g6 {[%clk 0:02:59]} 3. Nc3 {[%clk 0:02:59]}  Bg7 {[%clk 0:02:59]} 4. Nf3 {[%clk 0:02:59]}  O-O {[%clk 0:02:58]} 5. g3 {[%clk 0:02:59]}  d6 {[%clk 0:02:57]} 6. Bg2 {[%clk 0:02:59]}  c6 {[%clk 0:02:58]} 7. O-O {[%clk 0:02:58]}  Bf5 {[%clk 0:02:58]} 8. Ne1 {[%clk 0:02:52]}  Be6 {[%clk 0:02:58]} 9. b3 {[%clk 0:02:40]}  Na6 {[%clk 0:02:57]} 10. Bb2 {[%clk 0:02:37]}  Rb8 {[%clk 0:02:56]} 11. Nd3 {[%clk 0:02:36]}  c5 {[%clk 0:02:56]} 12. d5 {[%clk 0:02:31]}  Bd7 {[%clk 0:02:56]} 13. Rb1 {[%clk 0:02:26]}  Nc7 {[%clk 0:02:56]} 14. e4 {[%clk 0:02:24]}  b5 {[%clk 0:02:50]} 15. Qc2 {[%clk 0:02:22]}  bxc4 {[%clk 0:02:39]} 16. bxc4 {[%clk 0:02:22]}  Na6 {[%clk 0:02:39]} 17. a3 {[%clk 0:02:20]}  Ng4 {[%clk 0:02:35]} 18. h3 {[%clk 0:02:03]}  Ne5 {[%clk 0:02:33]} 19. Nxe5 {[%clk 0:01:54]}  Bxe5 {[%clk 0:02:34]} 20. f4 {[%clk 0:01:55]}  Bd4+ {[%clk 0:02:30]} 21. Kh2 {[%clk 0:01:55]}  Qa5 {[%clk 0:02:23]} 22. Ne2 {[%clk 0:01:26]}  Bxb2 {[%clk 0:02:18]} 23. Rxb2 {[%clk 0:01:27]}  Qxa3 {[%clk 0:02:15]} 24. Ra2 {[%clk 0:01:21]}  Nb4 {[%clk 0:01:58]} 25. Rxa3 {[%clk 0:01:19]}  Nxc2 {[%clk 0:01:58]} 26. Rxa7 {[%clk 0:01:19]}  Rfd8 {[%clk 0:01:58]} 27. Rc1 {[%clk 0:01:06]}  Ne3 {[%clk 0:01:58]} 28. Bf3 {[%clk 0:01:06]}  Rb2 {[%clk 0:01:56]} 29. g4 {[%clk 0:01:02]}  Nc2 {[%clk 0:01:44]} 30. Kg3 {[%clk 0:01:01]}  Nb4 {[%clk 0:01:39]} 31. e5 {[%clk 0:00:59]}  dxe5 {[%clk 0:01:34]} 32. Rc3 {[%clk 0:00:56]}  e4 {[%clk 0:01:32]} 33. Bxe4 {[%clk 0:00:40]}  Rxe2 {[%clk 0:01:32]} 34. Bf3 {[%clk 0:00:41]}  Rc2 {[%clk 0:01:24]} 35. Re3 {[%clk 0:00:41]}  Kf8 {[%clk 0:01:10]} 36. f5 {[%clk 0:00:35]}  Rxc4 {[%clk 0:01:07]} 37. fxg6 {[%clk 0:00:34]}  hxg6 {[%clk 0:01:06]} 38. h4 {[%clk 0:00:32]}  Nc2 {[%clk 0:00:52]} 39. Rb3 {[%clk 0:00:29]}  Nd4 {[%clk 0:00:52]} 40. Rbb7 {[%clk 0:00:29]}  Nxf3 {[%clk 0:00:21]} 41. Kxf3 {[%clk 0:00:27]}  Bxg4+ {[%clk 0:00:21]} 42. Kg3 {[%clk 0:00:26]}  Rxd5 {[%clk 0:00:19]} 43. Rxe7 {[%clk 0:00:25]}  Rd3+ {[%clk 0:00:19]} 44. Kf2 {[%clk 0:00:26]}  Rc2+ {[%clk 0:00:20]} 45. Kf1 {[%clk 0:00:24]}  Rd1+ {[%clk 0:00:20]} 46. Re1 {[%clk 0:00:25]}  Bh3+ {[%clk 0:00:20]} 47. Kg1 {[%clk 0:00:25]}  Rxe1# {[%clk 0:00:21]} 0-1


[Site "https://www.chess.com"]

[Event "Titled Tuesday Blitz August 22 Early 2023"]
[White "Stepanencu, Nicodim-Cosmin"]
[Black "Kekic, Armin"]
[WhiteFideId "1256220"]
[BlackFideId "14401274"]
[WhiteElo "2586"]
[BlackElo "2373"]
[Result "1-0"]
[Round "2"]
[TimeControl "180+1"]
[Date "2023.08.22"]
[WhiteClock "0:00:13"]
[BlackClock "0:00:09"]
[Board "164"]

1. d4 {[%clk 0:02:59]}  d5 {[%clk 0:02:59]} 2. Nc3 {[%clk 0:02:59]}  Nf6 {[%clk 0:02:58]} 3. Bg5 {[%clk 0:02:58]}  e6 {[%clk 0:02:55]} 4. Qd3 {[%clk 0:02:57]}  Be7 {[%clk 0:02:52]} 5. f3 {[%clk 0:02:55]}  b6 {[%clk 0:02:50]} 6. O-O-O {[%clk 0:02:51]}  c5 {[%clk 0:02:40]} 7. e4 {[%clk 0:02:47]}  cxd4 {[%clk 0:02:32]} 8. Qxd4 {[%clk 0:02:41]}  Nc6 {[%clk 0:02:31]} 9. Bb5 {[%clk 0:02:39]}  Bd7 {[%clk 0:02:24]} 10. Qa4 {[%clk 0:02:39]}  Qc7 {[%clk 0:02:04]} 11. Bxf6 {[%clk 0:02:18]}  Bxf6 {[%clk 0:01:56]} 12. exd5 {[%clk 0:02:16]}  Bg5+ {[%clk 0:01:26]} 13. Kb1 {[%clk 0:02:13]}  Nb8 {[%clk 0:01:06]} 14. dxe6 {[%clk 0:02:09]}  fxe6 {[%clk 0:01:02]} 15. Qe4 {[%clk 0:01:01]}  Nc6 {[%clk 0:00:27]} 16. Rxd7 {[%clk 0:00:53]}  Kxd7 {[%clk 0:00:22]} 17. Nh3 {[%clk 0:00:50]}  Be7 {[%clk 0:00:21]} 18. Nf4 {[%clk 0:00:28]}  e5 {[%clk 0:00:17]} 19. Nfd5 {[%clk 0:00:21]}  Qd6 {[%clk 0:00:14]} 20. Nxe7 {[%clk 0:00:18]}  Kxe7 {[%clk 0:00:15]} 21. Bxc6 {[%clk 0:00:18]}  Rac8 {[%clk 0:00:15]} 22. Bb7 {[%clk 0:00:14]}  Rc7 {[%clk 0:00:14]} 23. Nb5 {[%clk 0:00:15]}  Qf6 {[%clk 0:00:09]} 24. Nxc7 {[%clk 0:00:13]} 1-0


[Site "https://www.chess.com"]

[Event "Titled Tuesday Blitz August 22 Early 2023"]
[White "Ovezdurdyyeva, Jemal"]
[Black "Martins, Bruno Andre Leite"]
[WhiteFideId "14001888"]
[BlackFideId "1942255"]
[WhiteElo "2371"]
[BlackElo "2584"]
[Result "1-0"]
[Round "2"]
[TimeControl "180+1"]
[Date "2023.08.22"]
[WhiteClock "0:00:18"]
[BlackClock "0:00:10"]
[Board "165"]

1. e4 {[%clk 0:03:00]}  c5 {[%clk 0:03:00]} 2. Nf3 {[%clk 0:02:59]}  d6 {[%clk 0:03:00]} 3. c3 {[%clk 0:02:57]}  Nf6 {[%clk 0:02:59]} 4. Bd3 {[%clk 0:02:58]}  e6 {[%clk 0:02:59]} 5. O-O {[%clk 0:02:57]}  Be7 {[%clk 0:02:59]} 6. Bc2 {[%clk 0:02:57]}  O-O {[%clk 0:02:59]} 7. d4 {[%clk 0:02:57]}  cxd4 {[%clk 0:02:59]} 8. cxd4 {[%clk 0:02:57]}  b6 {[%clk 0:02:56]} 9. Nc3 {[%clk 0:02:53]}  Bb7 {[%clk 0:02:56]} 10. Qe2 {[%clk 0:02:44]}  Nbd7 {[%clk 0:02:55]} 11. e5 {[%clk 0:02:40]}  dxe5 {[%clk 0:02:55]} 12. dxe5 {[%clk 0:02:40]}  Nd5 {[%clk 0:02:55]} 13. Qd3 {[%clk 0:02:20]}  f5 {[%clk 0:02:45]} 14. exf6 {[%clk 0:02:19]}  N7xf6 {[%clk 0:02:45]} 15. Ng5 {[%clk 0:01:53]}  Nxc3 {[%clk 0:02:25]} 16. Qxc3 {[%clk 0:01:48]}  Rc8 {[%clk 0:02:24]} 17. Qd3 {[%clk 0:01:28]}  Qd5 {[%clk 0:02:06]} 18. Qxd5 {[%clk 0:00:57]}  Bxd5 {[%clk 0:02:06]} 19. Bb3 {[%clk 0:00:55]}  Bxb3 {[%clk 0:02:06]} 20. axb3 {[%clk 0:00:55]}  a5 {[%clk 0:02:05]} 21. Nxe6 {[%clk 0:00:55]}  Rfe8 {[%clk 0:02:00]} 22. Be3 {[%clk 0:00:53]}  Bc5 {[%clk 0:01:44]} 23. Nxc5 {[%clk 0:00:52]}  bxc5 {[%clk 0:01:44]} 24. Rxa5 {[%clk 0:00:52]}  Rb8 {[%clk 0:01:44]} 25. Rxc5 {[%clk 0:00:44]}  Rxb3 {[%clk 0:01:44]} 26. Bd4 {[%clk 0:00:45]}  Kf7 {[%clk 0:01:34]} 27. f3 {[%clk 0:00:36]}  Re2 {[%clk 0:01:32]} 28. Rc7+ {[%clk 0:00:31]}  Kg6 {[%clk 0:01:31]} 29. h4 {[%clk 0:00:27]}  Rd3 {[%clk 0:01:31]} 30. Bc3 {[%clk 0:00:26]}  Rd6 {[%clk 0:01:20]} 31. Kh2 {[%clk 0:00:22]}  Nh5 {[%clk 0:01:13]} 32. Kh3 {[%clk 0:00:20]}  Nf4+ {[%clk 0:01:06]} 33. Kg4 {[%clk 0:00:19]}  Ne6 {[%clk 0:00:49]} 34. Re7 {[%clk 0:00:19]}  h5+ {[%clk 0:00:44]} 35. Kg3 {[%clk 0:00:18]}  Kh7 {[%clk 0:00:25]} 36. Rf2 {[%clk 0:00:17]}  Rxf2 {[%clk 0:00:18]} 37. Kxf2 {[%clk 0:00:18]}  Ra6 {[%clk 0:00:17]} 38. Ke3 {[%clk 0:00:18]}  Rc6 {[%clk 0:00:17]} 39. Ke4 {[%clk 0:00:18]}  Rc4+ {[%clk 0:00:10]} 40. Kd5 {[%clk 0:00:18]} 1-0


[Site "https://www.chess.com"]

[Event "Titled Tuesday Blitz August 22 Early 2023"]
[White "Kozin, Yuri"]
[Black "Buscar, Michael"]
[WhiteFideId "4129920"]
[BlackFideId "2603616"]
[WhiteElo "2583"]
[BlackElo "2367"]
[Result "1-0"]
[Round "2"]
[TimeControl "180+1"]
[Date "2023.08.22"]
[WhiteClock "0:00:17"]
[BlackClock "0:00:04"]
[Board "166"]

1. e4 {[%clk 0:02:44]}  c5 {[%clk 0:02:59]} 2. Nf3 {[%clk 0:02:44]}  Nc6 {[%clk 0:02:59]} 3. d4 {[%clk 0:02:45]}  cxd4 {[%clk 0:03:00]} 4. Nxd4 {[%clk 0:02:45]}  Nf6 {[%clk 0:03:00]} 5. Nc3 {[%clk 0:02:46]}  e5 {[%clk 0:03:00]} 6. Ndb5 {[%clk 0:02:46]}  h6 {[%clk 0:03:01]} 7. Nd5 {[%clk 0:02:32]}  Nxd5 {[%clk 0:03:01]} 8. exd5 {[%clk 0:02:32]}  a6 {[%clk 0:03:01]} 9. Nc3 {[%clk 0:02:28]}  Nd4 {[%clk 0:03:01]} 10. Be3 {[%clk 0:02:26]}  Nf5 {[%clk 0:03:00]} 11. Bd3 {[%clk 0:02:19]}  Nxe3 {[%clk 0:03:00]} 12. fxe3 {[%clk 0:02:20]}  d6 {[%clk 0:03:00]} 13. O-O {[%clk 0:02:19]}  Qg5 {[%clk 0:02:57]} 14. Qf3 {[%clk 0:02:13]}  f6 {[%clk 0:02:42]} 15. Ne4 {[%clk 0:01:52]}  Qg4 {[%clk 0:02:39]} 16. Qf2 {[%clk 0:01:31]}  Be7 {[%clk 0:02:13]} 17. h3 {[%clk 0:01:29]}  Qh5 {[%clk 0:02:07]} 18. Ng3 {[%clk 0:01:13]}  Qf7 {[%clk 0:02:02]} 19. h4 {[%clk 0:01:00]}  Qxd5 {[%clk 0:01:47]} 20. Bg6+ {[%clk 0:00:58]}  Kd8 {[%clk 0:01:47]} 21. Rad1 {[%clk 0:00:55]}  Qxa2 {[%clk 0:01:37]} 22. Nf5 {[%clk 0:00:31]}  Bxf5 {[%clk 0:01:29]} 23. Qxf5 {[%clk 0:00:32]}  Kc7 {[%clk 0:01:22]} 24. Ra1 {[%clk 0:00:27]}  Qc4 {[%clk 0:01:08]} 25. Ra3 {[%clk 0:00:25]}  Kb8 {[%clk 0:00:36]} 26. Rc3 {[%clk 0:00:24]}  Qb4 {[%clk 0:00:24]} 27. Qd7 {[%clk 0:00:20]}  Rd8 {[%clk 0:00:06]} 28. Qxe7 {[%clk 0:00:18]}  Ka7 {[%clk 0:00:04]} 29. Rb3 {[%clk 0:00:17]} 1-0


[Site "https://www.chess.com"]

[Event "Titled Tuesday Blitz August 22 Early 2023"]
[White "Konenkin, Dmitry"]
[Black "Colas, Joshua"]
[WhiteFideId "4185781"]
[BlackFideId "2044447"]
[WhiteElo "2366"]
[BlackElo "2579"]
[Result "0-1"]
[Round "2"]
[TimeControl "180+1"]
[Date "2023.08.22"]
[WhiteClock "0:00:00"]
[BlackClock "0:00:34"]
[Board "167"]

1. d4 {[%clk 0:03:00]}  Nf6 {[%clk 0:02:58]} 2. Bg5 {[%clk 0:03:01]}  e6 {[%clk 0:02:57]} 3. e4 {[%clk 0:03:00]}  Be7 {[%clk 0:02:56]} 4. Nc3 {[%clk 0:02:55]}  Nxe4 {[%clk 0:02:35]} 5. Bxe7 {[%clk 0:02:53]}  Nxc3 {[%clk 0:02:32]} 6. Bxd8 {[%clk 0:02:53]}  Nxd1 {[%clk 0:02:32]} 7. Bxc7 {[%clk 0:02:53]}  Nxb2 {[%clk 0:02:33]} 8. a4 {[%clk 0:02:47]}  d5 {[%clk 0:02:29]} 9. Nf3 {[%clk 0:02:20]}  Nc6 {[%clk 0:02:09]} 10. Kd2 {[%clk 0:01:51]}  Kd7 {[%clk 0:01:56]} 11. Bf4 {[%clk 0:01:40]}  Nc4+ {[%clk 0:01:53]} 12. Bxc4 {[%clk 0:01:40]}  dxc4 {[%clk 0:01:54]} 13. Kc3 {[%clk 0:01:37]}  b6 {[%clk 0:01:54]} 14. Kxc4 {[%clk 0:01:24]}  Ba6+ {[%clk 0:01:53]} 15. Kb3 {[%clk 0:01:24]}  f6 {[%clk 0:01:50]} 16. Rad1 {[%clk 0:01:22]}  Rac8 {[%clk 0:01:46]} 17. Rhe1 {[%clk 0:01:06]}  g5 {[%clk 0:01:36]} 18. Be3 {[%clk 0:00:59]}  Na5+ {[%clk 0:01:35]} 19. Kb2 {[%clk 0:00:59]}  Bb7 {[%clk 0:01:29]} 20. c3 {[%clk 0:00:37]}  g4 {[%clk 0:01:20]} 21. Nd2 {[%clk 0:00:29]}  Bxg2 {[%clk 0:01:18]} 22. Rg1 {[%clk 0:00:29]}  Bc6 {[%clk 0:00:58]} 23. Rxg4 {[%clk 0:00:24]}  Rhg8 {[%clk 0:00:54]} 24. Rdg1 {[%clk 0:00:18]}  Rxg4 {[%clk 0:00:54]} 25. Rxg4 {[%clk 0:00:19]}  Re8 {[%clk 0:00:52]} 26. Ka3 {[%clk 0:00:17]}  Re7 {[%clk 0:00:53]} 27. Kb4 {[%clk 0:00:16]}  f5 {[%clk 0:00:50]} 28. Rg8 {[%clk 0:00:14]}  Rf7 {[%clk 0:00:50]} 29. Bf4 {[%clk 0:00:13]}  a6 {[%clk 0:00:44]} 30. c4 {[%clk 0:00:13]}  Bb7 {[%clk 0:00:43]} 31. c5 {[%clk 0:00:13]}  Nc6+ {[%clk 0:00:43]} 32. Kc4 {[%clk 0:00:14]}  Ne7 {[%clk 0:00:41]} 33. Rb8 {[%clk 0:00:12]}  Bd5+ {[%clk 0:00:41]} 34. Kb4 {[%clk 0:00:12]}  Nc6+ {[%clk 0:00:42]} 35. Kc3 {[%clk 0:00:11]}  Nxb8 {[%clk 0:00:42]} 36. Bxb8 {[%clk 0:00:12]}  bxc5 {[%clk 0:00:42]} 37. dxc5 {[%clk 0:00:12]}  Kc6 {[%clk 0:00:43]} 38. Kd4 {[%clk 0:00:13]}  Rd7 {[%clk 0:00:39]} 39. Bd6 {[%clk 0:00:12]}  Rb7 {[%clk 0:00:39]} 40. Nf1 {[%clk 0:00:10]}  Rb4+ {[%clk 0:00:38]} 41. Ke5 {[%clk 0:00:09]}  Rxa4 {[%clk 0:00:38]} 42. Ne3 {[%clk 0:00:10]}  Re4+ {[%clk 0:00:39]} 43. Kf6 {[%clk 0:00:10]}  a5 {[%clk 0:00:36]} 44. Nd1 {[%clk 0:00:06]}  a4 {[%clk 0:00:34]} 45. Nc3 {[%clk 0:00:06]}  Rc4 {[%clk 0:00:34]} 46. Ne2 {[%clk 0:00:04]}  a3 {[%clk 0:00:35]} 47. Be5 {[%clk 0:00:04]}  a2 {[%clk 0:00:34]} 48. Nf4 {[%clk 0:00:04]}  Re4 {[%clk 0:00:34]} 49. Bb2 {[%clk 0:00:00]}  Rxf4 {[%clk 0:00:34]} 0-1


[Site "https://www.chess.com"]